fUSD/lending_fUSD_20240508
["ID","MTS","AMOUNT","RATE_DAILY","PERIOD"]
[326609100,1715137849102,-500.0,0.00021095,2]
[326609101,1715137849112,-11627.08,0.00021095,2]
[326609102,1715137849124,-500.0,0.00021095,2]
[326609103,1715137849135,-500.0,0.00021095,2]
[326609104,1715137849144,-500.0,0.00021095,2]
[326609105,1715137849154,-489.10603978,0.00021095,2]
[326609106,1715137849165,-1184.38,0.00021095,2]
[326609107,1715137849175,-23770.26,0.00021095,2]
[326609108,1715137849184,-500.0,0.00021095,2]
[326609109,1715137849194,-3687.85,0.00021095,2]
[326609110,1715137849203,-500.0,0.00021095,2]
[326609111,1715137849213,-1886.79,0.00021095,2]
[326609112,1715137849223,-500.0,0.00021095,2]
[326609113,1715137849232,-500.0,0.00021095,2]
[326609114,1715137849242,-500.0,0.00021095,2]
[326609115,1715137849251,-206.0,0.0002129,8]
[326609116,1715137849261,-500.0,0.00021369,2]
[326609117,1715137849270,-1112.47,0.00021369,2]
[326609118,1715137849279,-500.0,0.00021369,2]
[326609119,1715137849289,-500.0,0.00021369,2]
[326609120,1715137849298,-11627.08,0.00021369,2]
[326609121,1715137849308,-500.0,0.00021369,2]
[326609122,1715137849317,-198.89620192,0.00021369,2]
[326609123,1715137849330,-500.0,0.00021369,2]
[326609124,1715137849345,-1184.38,0.00021369,2]
[326609125,1715137849358,-404.42028711,0.00021369,2]
[326609126,1715137849371,-3687.85,0.00021369,2]
[326609127,1715137849385,-500.0,0.00021369,2]
[326609128,1715137849395,-1886.79,0.00021369,2]
[326609129,1715137849407,-500.0,0.00021369,2]
[326609130,1715137849420,-500.0,0.00021369,2]
[326609131,1715137849432,-150.64560498,0.00021369,2]
[326609132,1715137849445,-291.370452,0.0002137,2]
[326609133,1715137849458,-150.0,0.000215,3]
[326609134,1715137849471,-160.81383593,0.00021589,2]
[326609135,1715137849483,-1007.39,0.00021589,15]
[326609136,1715137849497,-500.0,0.00021643,2]
[326609137,1715137849510,-1112.47,0.00021643,2]
[326609138,1715137849523,-500.0,0.00021643,2]
[326609139,1715137849535,-500.0,0.00021643,2]
[326609140,1715137849548,-11627.08,0.00021643,2]
[326609141,1715137849559,-500.0,0.00021643,2]
[326609142,1715137849573,-341.29481247,0.00021643,2]
[326609143,1715137849586,-1184.38,0.00021643,2]
[326609144,1715137849599,-3687.85,0.00021643,2]
[326609145,1715137849611,-500.0,0.00021643,2]
[326609146,1715137849622,-1886.79,0.00021643,2]
[326609147,1715137849632,-500.0,0.00021643,2]
[326609148,1715137849646,-500.0,0.00021643,2]
[326609149,1715137849658,-153.8305885,0.00021785,2]
[326609150,1715137849674,-159.8249879,0.00021862,2]
[326609151,1715137849686,-6782.61968309,0.000219,2]
[326609152,1715137849698,-500.0,0.00021917,2]
[326609153,1715137849712,-1112.47,0.00021917,2]
[326609154,1715137849723,-500.0,0.00021917,2]
[326609155,1715137849736,-500.0,0.00021917,2]
[326609156,1715137849751,-11627.08,0.00021917,2]
[326609157,1715137849765,-500.0,0.00021917,2]
[326609158,1715137849778,-1184.38,0.00021917,2]
[326609159,1715137849788,-3687.85,0.00021917,2]
[326609160,1715137849798,-251.84686099,0.00021917,2]
[326609161,1715137849808,-1886.79,0.00021917,2]
[326609162,1715137849819,-500.0,0.00021917,2]
[326609163,1715137849831,-500.0,0.00021917,2]
[326609164,1715137849844,-250.0,0.00021918,2]
[326609165,1715137849856,-250.0,0.00021918,2]
[326609166,1715137849868,-2000.0,0.00021918,2]
[326609167,1715137849879,-158.72050771,0.00021943,2]
[326609168,1715137849890,-161.11571209,0.00022,2]
[326609169,1715137849902,-67.4097643,0.00022,2]
[326609170,1715137850078,-478.95622022,0.00022,2]
[326609171,1715137850090,-163675.66008637,0.00022,2]
[326609172,1715137850102,-1000.0,0.00022,2]
[326609173,1715137850113,-10000.0,0.00022,2]
[326609174,1715137850125,-12667.5197177,0.00022,2]
[326609175,1715137850136,-850.0,0.00022,3]
[326609176,1715137850147,-150.0,0.00022,3]
[326609177,1715137850158,-151.9145512,0.00022021,2]
[326609178,1715137850170,-153.8305885,0.00022049,2]
[326609179,1715137850182,-153.8305885,0.00022094,2]
[326609180,1715137850193,-150.0,0.00022186,2]
[326609181,1715137850205,-150.0,0.00022186,2]
[326609182,1715137850217,-150.0,0.00022186,2]
[326609183,1715137850229,-150.0,0.00022186,2]
[326609184,1715137850240,-150.0,0.00022186,2]
[326609185,1715137850251,-150.0,0.00022186,2]
[326609186,1715137850263,-150.0,0.00022186,2]
[326609187,1715137850274,-150.0,0.00022186,2]
[326609188,1715137850284,-150.0,0.00022186,2]
[326609189,1715137850294,-150.0,0.00022186,2]
[326609190,1715137850304,-150.0,0.00022186,2]
[326609191,1715137850314,-150.0,0.00022186,2]
[326609192,1715137850324,-150.0,0.00022186,2]
[326609193,1715137850333,-150.0,0.00022186,2]
[326609194,1715137850343,-150.0,0.00022186,2]
[326609195,1715137850352,-150.0,0.00022186,2]
[326609196,1715137850362,-2301.0,0.00022186,2]
[326609197,1715137850371,-1397.0,0.00022186,2]
[326609198,1715137850381,-463.0,0.00022186,2]
[326609199,1715137850390,-972.0,0.00022186,2]
[326609200,1715137850400,-543.0,0.00022186,2]
[326609201,1715137850410,-1260.0,0.00022186,2]
[326609202,1715137850420,-1227.0,0.00022186,2]
[326609203,1715137850429,-611.0,0.00022186,2]
[326609204,1715137850439,-438.0,0.00022186,2]
[326609205,1715137850448,-809.0,0.00022186,2]
[326609206,1715137850457,-1788.0,0.00022186,2]
[326609207,1715137850467,-2431.0,0.00022186,2]
[326609208,1715137850476,-150.0,0.00022186,2]
[326609209,1715137850486,-421.0,0.00022186,2]
[326609210,1715137850495,-1478.0,0.00022186,2]
[326609211,1715137850505,-1139.0,0.00022186,2]
[326609212,1715137850514,-1645.0,0.00022186,2]
[326609213,1715137850525,-444.0,0.00022186,2]
[326609214,1715137850534,-215.0,0.00022186,2]
[326609215,1715137850543,-3154.0,0.00022186,2]
[326609216,1715137850553,-288.0,0.00022186,2]
[326609217,1715137850563,-5745.0,0.00022186,2]
[326609218,1715137850573,-2295.0,0.00022186,2]
[326609219,1715137850803,-5907.0,0.00022186,2]
[326609220,1715137850821,-37800.0,0.00022186,2]
[326609221,1715137850831,-1058.0,0.00022186,2]
[326609222,1715137850840,-500.0,0.00022191,2]
[326609223,1715137850851,-1112.47,0.00022191,2]
[326609224,1715137850860,-500.0,0.00022191,2]
[326609225,1715137850870,-500.0,0.00022191,2]
[326609226,1715137850880,-11627.08,0.00022191,2]
[326609227,1715137850891,-500.0,0.00022191,2]
[326609228,1715137850900,-1184.38,0.00022191,2]
[326609229,1715137850910,-23770.26,0.00022191,2]
[326609230,1715137850920,-3687.85,0.00022191,2]
[326609231,1715137850929,-1886.79,0.00022191,2]
[326609232,1715137850939,-500.0,0.00022191,2]
[326609233,1715137850949,-500.0,0.00022191,2]
[326609234,1715137850959,-291.370452,0.00022192,2]
[326609235,1715137850969,-153.8305885,0.00022206,2]
[326609236,1715137850979,-151.9145512,0.00022262,2]
[326609237,1715137850989,-155.94755228,0.00022327,2]
[326609238,1715137850998,-335.25,0.000224,2]
[326609239,1715137851008,-282.29,0.000224,2]
[326609240,1715137851017,-500.0,0.00022465,2]
[326609241,1715137851028,-1112.47,0.00022465,2]
[326609242,1715137851038,-500.0,0.00022465,2]
[326609243,1715137851048,-500.0,0.00022465,2]
[326609244,1715137851058,-11627.08,0.00022465,2]
[326609245,1715137851068,-500.0,0.00022465,2]
[326609246,1715137851078,-1184.38,0.00022465,2]
[326609247,1715137851087,-3687.85,0.00022465,2]
[326609248,1715137851097,-1886.79,0.00022465,2]
[326609249,1715137851106,-500.0,0.00022465,2]
[326609250,1715137851116,-257.24726808,0.00022465,2]
[326609251,1715137851128,-153.8305885,0.00022493,2]
[326609252,1715137851138,-150.0,0.000225,3]
[326609253,1715137851148,-165.51,0.000226,2]
[326609254,1715137851157,-300.84,0.00022661,2]
[326609255,1715137851168,-165.46,0.00022661,2]
[326609256,1715137851178,-500.0,0.00022739,2]
[326609257,1715137851188,-1112.47,0.00022739,2]
[326609258,1715137851197,-500.0,0.00022739,2]
[326609259,1715137851208,-500.0,0.00022739,2]
[326609260,1715137851218,-11627.08,0.00022739,2]
[326609261,1715137851228,-500.0,0.00022739,2]
[326609262,1715137851238,-1184.38,0.00022739,2]
[326609263,1715137851248,-3687.85,0.00022739,2]
[326609264,1715137851258,-1886.79,0.00022739,2]
[326609265,1715137851268,-500.0,0.00022739,2]
[326609266,1715137851279,-159.8249879,0.00022957,2]
[326609267,1715137851289,-2903.50248,0.00023,2]
[326609268,1715137851298,-150.0,0.00023,3]
[326609269,1715137851308,-500.0,0.00023013,2]
[326609270,1715137851317,-1112.47,0.00023013,2]
[326609271,1715137851327,-500.0,0.00023013,2]
[326609272,1715137851337,-176.66,0.00023013,2]
[326609273,1715137851347,-11627.08,0.00023013,2]
[326609274,1715137851357,-500.0,0.00023013,2]
[326609275,1715137851367,-1184.38,0.00023013,2]
[326609276,1715137851378,-3687.85,0.00023013,2]
[326609277,1715137851388,-151.0,0.00023013,7]
[326609278,1715137851398,-1886.79,0.00023013,2]
[326609279,1715137851408,-598.04,0.00023013,2]
[326609280,1715137851418,-291.370452,0.00023014,2]
[326609281,1715137851427,-151.9145512,0.00023061,2]
[326609282,1715137851437,-151.9145512,0.00023065,2]
[326609283,1715137851447,-159.50899116,0.00023133,2]
[326609284,1715137851457,-151.9145512,0.00023146,2]
[326609285,1715137851467,-153.8305885,0.00023285,2]
[326609286,1715137851477,-500.0,0.00023287,2]
[326609287,1715137851487,-500.0,0.00023287,2]
[326609288,1715137851496,-500.0,0.00023287,2]
[326609289,1715137851506,-500.0,0.00023287,2]
[326609290,1715137851516,-500.0,0.00023287,2]
[326609291,1715137851528,-500.0,0.00023287,2]
[326609292,1715137851538,-500.0,0.00023287,2]
[326609293,1715137851547,-500.0,0.00023287,2]
[326609294,1715137851556,-500.0,0.00023287,2]
[326609295,1715137851566,-500.0,0.00023287,2]
[326609296,1715137851575,-500.0,0.00023287,2]
[326609297,1715137851585,-500.0,0.00023287,2]
[326609298,1715137851595,-500.0,0.00023287,2]
[326609299,1715137851604,-500.0,0.00023287,2]
[326609300,1715137851614,-500.0,0.00023287,2]
[326609301,1715137851624,-500.0,0.00023287,2]
[326609302,1715137851634,-500.0,0.00023287,2]
[326609303,1715137851643,-500.0,0.00023287,2]
[326609304,1715137851653,-500.0,0.00023287,2]
[326609305,1715137851665,-500.0,0.00023287,2]
[326609306,1715137851676,-500.0,0.00023287,2]
[326609307,1715137851687,-500.0,0.00023287,2]
[326609308,1715137851697,-500.0,0.00023287,2]
[326609309,1715137851707,-500.0,0.00023287,2]
[326609310,1715137851717,-500.0,0.00023287,2]
[326609311,1715137851726,-500.0,0.00023287,2]
[326609312,1715137851736,-500.0,0.00023287,2]
[326609313,1715137851747,-500.0,0.00023287,2]
[326609314,1715137851756,-500.0,0.00023287,2]
[326609315,1715137851766,-500.0,0.00023287,2]
[326609316,1715137851777,-500.0,0.00023287,2]
[326609317,1715137851786,-500.0,0.00023287,2]
[326609318,1715137851796,-500.0,0.00023287,2]
[326609319,1715137851805,-500.0,0.00023287,2]
[326609320,1715137851815,-500.0,0.00023287,2]
[326609321,1715137851824,-500.0,0.00023287,2]
[326609322,1715137851833,-500.0,0.00023287,2]
[326609323,1715137851842,-500.0,0.00023287,2]
[326609324,1715137851851,-500.0,0.00023287,2]
[326609325,1715137851861,-500.0,0.00023287,2]
[326609326,1715137851870,-500.0,0.00023287,2]
[326609327,1715137851880,-500.0,0.00023287,2]
[326609328,1715137851889,-500.0,0.00023287,2]
[326609329,1715137851899,-500.0,0.00023287,2]
[326609330,1715137851908,-500.0,0.00023287,2]
[326609331,1715137851918,-500.0,0.00023287,2]
[326609332,1715137851927,-500.0,0.00023287,2]
[326609333,1715137851936,-500.0,0.00023287,2]
[326609334,1715137851945,-500.0,0.00023287,2]
[326609335,1715137851955,-500.0,0.00023287,2]
[326609336,1715137851964,-500.0,0.00023287,2]
[326609337,1715137851973,-500.0,0.00023287,2]
[326609338,1715137851983,-500.0,0.00023287,2]
[326609339,1715137851992,-500.0,0.00023287,2]
[326609340,1715137852001,-500.0,0.00023287,2]
[326609341,1715137852010,-500.0,0.00023287,2]
[326609342,1715137852020,-500.0,0.00023287,2]
[326609343,1715137852029,-500.0,0.00023287,2]
[326609344,1715137852039,-500.0,0.00023287,2]
[326609345,1715137852048,-500.0,0.00023287,2]
[326609346,1715137852057,-500.0,0.00023287,2]
[326609347,1715137852067,-500.0,0.00023287,2]
[326609348,1715137852076,-500.0,0.00023287,2]
[326609349,1715137852085,-500.0,0.00023287,2]
[326609350,1715137852095,-500.0,0.00023287,2]
[326609351,1715137852104,-500.0,0.00023287,2]
[326609352,1715137852114,-500.0,0.00023287,2]
[326609353,1715137852125,-500.0,0.00023287,2]
[326609354,1715137852135,-500.0,0.00023287,2]
[326609355,1715137852144,-500.0,0.00023287,2]
[326609356,1715137852155,-500.0,0.00023287,2]
[326609357,1715137852166,-500.0,0.00023287,2]
[326609358,1715137852175,-500.0,0.00023287,2]
[326609359,1715137852185,-500.0,0.00023287,2]
[326609360,1715137852195,-500.0,0.00023287,2]
[326609361,1715137852205,-500.0,0.00023287,2]
[326609362,1715137852214,-500.0,0.00023287,2]
[326609363,1715137852224,-500.0,0.00023287,2]
[326609364,1715137852233,-500.0,0.00023287,2]
[326609365,1715137852243,-500.0,0.00023287,2]
[326609366,1715137852252,-500.0,0.00023287,2]
[326609367,1715137852262,-500.0,0.00023287,2]
[326609368,1715137852273,-500.0,0.00023287,2]
[326609369,1715137852282,-500.0,0.00023287,2]
[326609370,1715137852292,-500.0,0.00023287,2]
[326609371,1715137852301,-500.0,0.00023287,2]
[326609372,1715137852311,-500.0,0.00023287,2]
[326609373,1715137852321,-500.0,0.00023287,2]
[326609374,1715137852331,-500.0,0.00023287,2]
[326609375,1715137852341,-500.0,0.00023287,2]
[326609376,1715137852350,-500.0,0.00023287,2]
[326609377,1715137852360,-500.0,0.00023287,2]
[326609378,1715137852369,-500.0,0.00023287,2]
[326609379,1715137852379,-500.0,0.00023287,2]
[326609380,1715137852389,-500.0,0.00023287,2]
[326609381,1715137852399,-500.0,0.00023287,2]
[326609382,1715137852408,-500.0,0.00023287,2]
[326609383,1715137852422,-500.0,0.00023287,2]
[326609384,1715137852444,-500.0,0.00023287,2]
[326609385,1715137852466,-500.0,0.00023287,2]
[326609386,1715137852485,-500.0,0.00023287,2]
[326609387,1715137852505,-500.0,0.00023287,2]
[326609388,1715137852528,-500.0,0.00023287,2]
[326609389,1715137852555,-500.0,0.00023287,2]
[326609390,1715137852578,-500.0,0.00023287,2]
[326609391,1715137852602,-500.0,0.00023287,2]
[326609392,1715137852630,-500.0,0.00023287,2]
[326609393,1715137852644,-500.0,0.00023287,2]
[326609394,1715137852653,-500.0,0.00023287,2]
[326609395,1715137852666,-500.0,0.00023287,2]
[326609396,1715137852675,-500.0,0.00023287,2]
[326609397,1715137852684,-500.0,0.00023287,2]
[326609398,1715137852693,-500.0,0.00023287,2]
[326609399,1715137852703,-500.0,0.00023287,2]
[326609400,1715137852712,-500.0,0.00023287,2]
[326609401,1715137852721,-500.0,0.00023287,2]
[326609402,1715137852731,-500.0,0.00023287,2]
[326609403,1715137852740,-500.0,0.00023287,2]
[326609404,1715137852751,-500.0,0.00023287,2]
[326609405,1715137852761,-500.0,0.00023287,2]
[326609406,1715137852771,-500.0,0.00023287,2]
[326609407,1715137852780,-500.0,0.00023287,2]
[326609408,1715137852790,-500.0,0.00023287,2]
[326609409,1715137852799,-500.0,0.00023287,2]
[326609410,1715137852808,-500.0,0.00023287,2]
[326609411,1715137852818,-500.0,0.00023287,2]
[326609412,1715137852827,-500.0,0.00023287,2]
[326609413,1715137852836,-500.0,0.00023287,2]
[326609414,1715137852847,-500.0,0.00023287,2]
[326609415,1715137852856,-500.0,0.00023287,2]
[326609416,1715137852865,-500.0,0.00023287,2]
[326609417,1715137852875,-500.0,0.00023287,2]
[326609418,1715137852884,-500.0,0.00023287,2]
[326609419,1715137852893,-500.0,0.00023287,2]
[326609420,1715137852903,-500.0,0.00023287,2]
[326609421,1715137852912,-500.0,0.00023287,2]
[326609422,1715137852922,-500.0,0.00023287,2]
[326609423,1715137852931,-500.0,0.00023287,2]
[326609424,1715137852941,-500.0,0.00023287,2]
[326609425,1715137852950,-500.0,0.00023287,2]
[326609426,1715137852960,-500.0,0.00023287,2]
[326609427,1715137852969,-500.0,0.00023287,2]
[326609428,1715137852979,-500.0,0.00023287,2]
[326609429,1715137852988,-500.0,0.00023287,2]
[326609430,1715137852998,-500.0,0.00023287,2]
[326609431,1715137853007,-500.0,0.00023287,2]
[326609432,1715137853017,-500.0,0.00023287,2]
[326609433,1715137853028,-500.0,0.00023287,2]
[326609434,1715137853038,-500.0,0.00023287,2]
[326609435,1715137853047,-500.0,0.00023287,2]
[326609436,1715137853057,-500.0,0.00023287,2]
[326609437,1715137853066,-500.0,0.00023287,2]
[326609438,1715137853075,-500.0,0.00023287,2]
[326609439,1715137853084,-500.0,0.00023287,2]
[326609440,1715137853094,-500.0,0.00023287,2]
[326609441,1715137853103,-500.0,0.00023287,2]
[326609442,1715137853112,-500.0,0.00023287,2]
[326609443,1715137853124,-500.0,0.00023287,2]
[326609444,1715137853134,-500.0,0.00023287,2]
[326609445,1715137853143,-500.0,0.00023287,2]
[326609446,1715137853153,-500.0,0.00023287,2]
[326609447,1715137853162,-500.0,0.00023287,2]
[326609448,1715137853172,-500.0,0.00023287,2]
[326609449,1715137853182,-500.0,0.00023287,2]
[326609450,1715137853192,-500.0,0.00023287,2]
[326609451,1715137853202,-500.0,0.00023287,2]
[326609452,1715137853211,-500.0,0.00023287,2]
[326609453,1715137853221,-500.0,0.00023287,2]
[326609454,1715137853231,-500.0,0.00023287,2]
[326609455,1715137853240,-500.0,0.00023287,2]
[326609456,1715137853249,-500.0,0.00023287,2]
[326609457,1715137853258,-500.0,0.00023287,2]
[326609458,1715137853268,-500.0,0.00023287,2]
[326609459,1715137853277,-500.0,0.00023287,2]
[326609460,1715137853286,-500.0,0.00023287,2]
[326609461,1715137853295,-500.0,0.00023287,2]
[326609462,1715137853305,-500.0,0.00023287,2]
[326609463,1715137853314,-500.0,0.00023287,2]
[326609464,1715137853323,-500.0,0.00023287,2]
[326609465,1715137853332,-500.0,0.00023287,2]
[326609466,1715137853342,-500.0,0.00023287,2]
[326609467,1715137853351,-500.0,0.00023287,2]
[326609468,1715137853361,-500.0,0.00023287,2]
[326609469,1715137853370,-500.0,0.00023287,2]
[326609470,1715137853380,-500.0,0.00023287,2]
[326609471,1715137853389,-500.0,0.00023287,2]
[326609472,1715137853399,-500.0,0.00023287,2]
[326609473,1715137853408,-500.0,0.00023287,2]
[326609474,1715137853417,-500.0,0.00023287,2]
[326609475,1715137853427,-500.0,0.00023287,2]
[326609476,1715137853437,-500.0,0.00023287,2]
[326609477,1715137853447,-500.0,0.00023287,2]
[326609478,1715137853456,-500.0,0.00023287,2]
[326609479,1715137853466,-500.0,0.00023287,2]
[326609480,1715137853475,-500.0,0.00023287,2]
[326609481,1715137853485,-500.0,0.00023287,2]
[326609482,1715137853494,-500.0,0.00023287,2]
[326609483,1715137853504,-500.0,0.00023287,2]
[326609484,1715137853513,-500.0,0.00023287,2]
[326609485,1715137853523,-500.0,0.00023287,2]
[326609486,1715137853532,-500.0,0.00023287,2]
[326609487,1715137853541,-500.0,0.00023287,2]
[326609488,1715137853551,-500.0,0.00023287,2]
[326609489,1715137853560,-1112.47,0.00023287,2]
[326609490,1715137853570,-500.0,0.00023287,2]
[326609491,1715137853579,-500.0,0.00023287,2]
[326609492,1715137853589,-500.0,0.00023287,2]
[326609493,1715137853598,-500.0,0.00023287,2]
[326609494,1715137853607,-500.0,0.00023287,2]
[326609495,1715137853616,-500.0,0.00023287,2]
[326609496,1715137853626,-500.0,0.00023287,2]
[326609497,1715137853635,-500.0,0.00023287,2]
[326609498,1715137853644,-500.0,0.00023287,2]
[326609499,1715137853653,-500.0,0.00023287,2]
[326609500,1715137853667,-500.0,0.00023287,2]
[326609501,1715137853676,-500.0,0.00023287,2]
[326609502,1715137853685,-500.0,0.00023287,2]
[326609503,1715137853694,-11627.08,0.00023287,2]
[326609504,1715137853705,-500.0,0.00023287,2]
[326609505,1715137853714,-1184.38,0.00023287,2]
[326609506,1715137853724,-23770.26,0.00023287,2]
[326609507,1715137853733,-3687.85,0.00023287,2]
[326609508,1715137853744,-1886.79,0.00023287,2]
[326609509,1715137853754,-275.915295,0.00023287,7]
[326609510,1715137853768,-175.954031,0.00023287,7]
[326609511,1715137853778,-2002.05142652,0.000234,2]
[326609512,1715137853787,-151.438996,0.00023445,7]
[326609513,1715137853796,-151.0,0.00023445,7]
[326609514,1715137853806,-151.0,0.00023445,7]
[326609515,1715137853815,-45866.65270678,0.00023445,2]
[326609516,1715137853824,-150.0,0.000235,3]
[326609517,1715137853835,-158.72050771,0.00023529,2]
[326609518,1715137853844,-500.0,0.00023561,2]
[326609519,1715137853853,-1112.47,0.00023561,2]
[326609520,1715137853862,-500.0,0.00023561,2]
[326609521,1715137853872,-11627.08,0.00023561,2]
[326609522,1715137853885,-331.45711954,0.00023561,2]
[326609523,1715137853894,-1184.38,0.00023561,2]
[326609524,1715137853904,-3687.85,0.00023561,2]
[326609525,1715137853913,-1886.79,0.00023561,2]
[326609526,1715137853923,-4215.87522499,0.00023603,2]
[326609527,1715137853932,-153.8305885,0.00023625,2]
[326609528,1715137853941,-160.81383594,0.00023726,2]
[326609529,1715137853950,-158.72050771,0.00023731,2]
[326609530,1715137853960,-154.19350589,0.00023781,2]
[326609531,1715137853969,-500.0,0.00023835,2]
[326609532,1715137853979,-1112.47,0.00023835,2]
[326609533,1715137853989,-500.0,0.00023835,2]
[326609534,1715137853998,-11627.08,0.00023835,2]
[326609535,1715137854008,-1184.38,0.00023835,2]
[326609536,1715137854018,-3687.85,0.00023835,2]
[326609537,1715137854028,-1886.79,0.00023835,2]
[326609538,1715137854038,-291.370452,0.00023836,2]
[326609539,1715137854047,-158.72050776,0.00023938,2]
[326609540,1715137854057,-432.36004694,0.00024,2]
[326609541,1715137854066,-900.0,0.00024,3]
[326609542,1715137854076,-2216.0,0.00024,2]
[326609543,1715137854085,-150.0,0.00024,4]
[326609544,1715137854095,-335.25,0.000241,2]
[326609545,1715137854104,-282.29,0.000241,2]
[326609546,1715137854114,-500.0,0.00024109,2]
[326609547,1715137854125,-1112.47,0.00024109,2]
[326609548,1715137854135,-500.0,0.00024109,2]
[326609549,1715137854145,-11627.08,0.00024109,2]
[326609550,1715137854155,-1184.38,0.00024109,2]
[326609551,1715137854165,-23770.26,0.00024109,2]
[326609552,1715137854175,-3687.85,0.00024109,2]
[326609553,1715137854185,-1886.79,0.00024109,2]
[326609554,1715137854195,-153.8305885,0.00024153,2]
[326609555,1715137854204,-180.0,0.0002423,2]
[326609556,1715137854339,-155.94755229,0.00024239,2]
[326609557,1715137854349,-155.93242813,0.0002425,2]
[326609558,1715137854360,-500.0,0.00024383,2]
[326609559,1715137854370,-1112.47,0.00024383,2]
[326609560,1715137854380,-500.0,0.00024383,2]
[326609561,1715137854391,-11627.08,0.00024383,2]
[326609562,1715137854400,-186.659429,0.00024383,7]
[326609563,1715137854410,-151.0,0.00024383,7]
[326609564,1715137854420,-1184.38,0.00024383,2]
[326609565,1715137854429,-23770.26,0.00024383,2]
[326609566,1715137854440,-3687.85,0.00024383,2]
[326609567,1715137854449,-1886.79,0.00024383,2]
[326609568,1715137854460,-151.91455123,0.00024402,2]
[326609569,1715137854470,-167.050811,0.00024498,2]
[326609570,1715137854480,-150.0,0.000245,4]
[326609571,1715137854490,-305.08096658,0.00024657,14]
[326609572,1715137854500,-502.83716215,0.00024657,2]
[326609573,1715137854510,-500.0,0.00024657,2]
[326609574,1715137854520,-1112.47,0.00024657,2]
[326609575,1715137854530,-500.0,0.00024657,2]
[326609576,1715137854540,-11627.08,0.00024657,2]
[326609577,1715137854550,-1184.38,0.00024657,2]
[326609578,1715137854560,-23770.26,0.00024657,2]
[326609579,1715137854571,-266.73623467,0.00024657,2]
[326609580,1715137854581,-3687.85,0.00024657,2]
[326609581,1715137854591,-1886.79,0.00024657,2]
[326609582,1715137854600,-291.370452,0.00024658,2]
[326609583,1715137854610,-750.11,0.00024658,2]
[326609584,1715137854620,-151.0,0.00024658,7]
[326609585,1715137854630,-151.0,0.00024658,7]
[326609586,1715137854640,-529.03,0.00024658,2]
[326609587,1715137854650,-500.0,0.00024671,2]
[326609588,1715137854661,-500.0,0.00024671,2]
[326609589,1715137854673,-500.0,0.00024671,2]
[326609590,1715137854683,-500.0,0.00024671,2]
[326609591,1715137854692,-500.0,0.00024671,2]
[326609592,1715137854702,-500.0,0.00024671,2]
[326609593,1715137854712,-153.15559888,0.000247,3]
[326609594,1715137854722,-153.8305885,0.00024745,2]
[326609595,1715137854731,-158.3299398,0.00024786,2]
[326609596,1715137854742,-167.050811,0.00024798,4]
[326609597,1715137854752,-1500.0,0.000249,2]
[326609598,1715137854763,-500.0,0.00024931,2]
[326609599,1715137854774,-1112.47,0.00024931,2]